bitfinex-derivatives/quotes_SOLF0:USTF0_20251230
["timestamp","ask_amount","ask_price","bid_price","bid_amount"]
[1767101515300,2.88,124.27,124.19,3.15212692]
[1767101515912,0.060027,124.24,124.22,0.05188502]
[1767101516110,2.7e-05,124.24,124.22,0.05188502]
[1767101520009,10.193427,124.24,124.19,3.54]
[1767101520213,2.940027,124.24,124.19,3.54]
[1767101521112,2.940027,124.24,124.2,0.05652047]
[1767101522017,2.89,124.22,124.16,275.7834165]
[1767101522226,2.89,124.22,124.16,3.54]
[1767101523012,2.89,124.22,124.18,0.05621637]
[1767101523217,0.06108472,124.2,124.18,0.05621637]
[1767101524611,0.00108472,124.2,124.18,3.59621637]
[1767101525810,0.00108472,124.2,124.18,0.05621637]
[1767101529213,0.00108472,124.2,124.18,3.59621637]
[1767101536026,108.47532692,124.25,124.18,3.59621637]
[1767101536224,98.07,124.25,124.18,3.59621637]
[1767101536518,2.89,124.24,124.18,3.59621637]
[1767101537017,0.05578477,124.22,124.18,3.59621637]
[1767101538515,7.2527,124.25,124.19,3.54]
[1767101539321,0.0610956,124.23,124.21,0.05746603]
[1767101541218,0.0010956,124.23,124.21,3.59746603]
[1767101544522,0.0010956,124.23,124.21,0.05746603]
[1767101546922,0.0010956,124.23,124.21,3.59746603]
[1767101552522,0.0010956,124.23,124.21,0.05746603]
[1767101575656,12.28386236,124.23,124.18,3.24]
[1767101576649,12.28386236,124.23,124.19,0.06003799]
[1767101578557,7.2546,124.22,124.19,0.06003799]
[1767101580050,9.27326676,124.22,124.19,0.06003799]
[1767101582668,2.01866676,124.22,124.19,0.06003799]
[1767101583057,3.0110956,124.23,124.19,0.06003799]
[1767101583658,10.2650956,124.23,124.19,0.06003799]
[1767101585561,0.0010956,124.23,124.2,3.35]
[1767101594770,0.0010956,124.23,124.19,0.06003799]
[1767101594976,4.95866676,124.2,124.15,18.35157409]
[1767101595177,2.94,124.17,124.11,3.35]
[1767101595371,4.95866676,124.16,124.1,10.84740151]
[1767101595575,2.94,124.19,124.11,3.35]
[1767101596075,2.94,124.19,124.14,0.05387741]
[1767101597066,0.06143383,124.18,124.14,0.05387741]
[1767101597271,5.08010059,124.18,124.14,0.00387741]
[1767101597478,2.95,124.17,124.14,0.00387741]
[1767101598285,7.2581,124.16,124.14,0.00387741]
[1767101598485,2.95,124.15,124.1,10.84740151]
[1767101598790,2.95,124.15,124.1,1.51e-06]
[1767101599173,10.2092,124.14,124.1,1.51e-06]
[1767101599487,2.95,124.11,124.05,3.5]
[1767101599879,0.05548596,124.09,124.07,0.06180831]
[1767101606288,100.18866676,124.13,124.07,0.06180831]
[1767101606481,3.0,124.12,124.07,0.06180831]
[1767101607288,0.05109952,124.11,124.07,0.06180831]
[1767101607783,0.05109952,124.11,124.07,3.56180831]
[1767101608484,0.00109952,124.11,124.07,5.58047507]
[1767101608686,0.00109952,124.11,124.08,3.5]
[1767101609794,0.00109952,124.11,124.08,10.7623]
[1767101609985,0.00109952,124.11,124.09,3.5]
[1767101610892,3.05,124.16,124.1,3.5]
[1767101611780,0.05475523,124.14,124.12,0.05120736]
[1767101611984,0.00475523,124.14,124.12,0.05120736]
[1767101622598,0.00475523,124.14,124.09,3.5]
[1767101623098,0.00475523,124.14,124.07,102.5227]
[1767101623099,3.10475523,124.14,124.07,3.5]
[1767101623299,3.1,124.12,124.07,3.5]
[1767101623506,0.05587948,124.11,124.08,0.06074958]
[1767101623701,0.05587948,124.11,124.07,3.5]
[1767101623904,0.05587948,124.11,124.05,3.5]
[1767101624099,3.1,124.12,124.05,3.5]
[1767101624808,0.05124938,124.1,124.07,0.05161861]
[1767101629100,3.16124938,124.1,124.07,0.05161861]
[1767101629300,3.29,124.08,123.97,3.1587784]
[1767101629512,3.29,124.07,123.97,3.1587784]
[1767101629701,98.55,124.07,123.97,3.1587784]
[1767101630300,0.06106075,124.03,124.01,0.05883943]
[1767101630511,0.05881729,124.03,124.01,0.05883943]
[1767101634012,0.05881729,124.03,123.99,3.53]
[1767101634216,7.32451729,124.03,123.96,3.53]
[1767101634608,3.29,124.02,123.95,7.27]
[1767101634809,3.29,124.02,123.93,3.53]
[1767101635011,0.05107881,123.99,123.96,0.0551904]
[1767101635513,0.05107881,123.99,123.93,3.53]
[1767101636510,0.05107881,123.99,123.95,0.05226672]
[1767101636717,3.34107881,123.99,123.93,3.53]
[1767101637017,0.05107881,123.99,123.93,3.53]
[1767101637714,0.05107881,123.99,123.95,3.59092993]
[1767101639022,3.29,124.03,123.95,3.59092993]
[1767101639222,10.7247,124.05,123.96,3.41]
[1767101639414,106.0447,124.05,123.96,3.41]
[1767101639918,7.2647,124.05,123.96,3.41]
[1767101640115,211.4699784,124.07,124.0,3.41]
[1767101640421,98.78,124.1,124.01,3.41]
[1767101640720,3.46,124.09,124.01,3.41]
[1767101640906,3.46,124.12,124.03,3.41]
[1767101641112,98.78,124.12,124.05,3.41]
[1767101641313,0.05170158,124.1,124.07,0.0512444]
[1767101641920,0.00170158,124.1,124.07,0.0512444]
[1767101642119,0.00170158,124.1,124.07,3.4612444]
[1767101644923,10.7188,124.15,124.07,3.4612444]
[1767101645120,3.46,124.14,124.07,3.41]
[1767101645429,3.46,124.13,124.04,3.41]
[1767101645832,98.78,124.13,124.04,3.41]
[1767101646127,0.05742742,124.1,124.07,0.05331988]
[1767101652130,0.05742742,124.1,124.04,3.41]
[1767101652323,3.46,124.09,124.02,3.41]
[1767101652728,98.76,124.09,124.02,3.41]
[1767101653125,0.05521333,124.07,124.04,0.05559261]
[1767101664135,10.84871333,124.07,124.0,3.31]
[1767101664339,3.1587784,124.06,124.0,3.31]
[1767101665139,0.05616315,124.04,124.02,0.05517778]
[1767101686150,7.32116315,124.04,124.0,3.31]
[1767101686952,12.63637938,124.04,123.98,3.21]
[1767101687245,12.63637938,124.04,124.0,0.05298327]
[1767101687842,0.05616315,124.04,124.0,3.26298327]
[1767101688854,5.31521623,124.07,124.0,3.26298327]
[1767101689344,102.5828,124.08,124.02,3.21]
[1767101689747,0.06129224,124.06,124.04,0.05562553]
[1767101693557,0.00129224,124.06,124.04,3.26562553]
[1767101703360,0.00129224,124.06,124.04,0.05562553]
[1767101717085,2.02521623,124.08,124.04,2.553e-05]
[1767101717380,211.6398,124.11,124.04,2.553e-05]
[1767101717681,2.02521623,124.09,124.04,2.553e-05]
[1767101718081,0.06043777,124.08,124.05,0.05695426]
[1767101719387,2.02521623,124.05,123.99,10.06492713]
[1767101720286,0.004688,124.03,124.01,0.05209248]
[1767101720786,2.02521623,124.07,124.01,0.05209248]
[1767101720982,2.02521623,124.07,123.99,10.06492713]
[1767101721189,9.28721623,124.09,124.02,7.266]
[1767101721586,7.262,124.09,124.02,7.266]
[1767101721788,0.05766087,124.07,124.04,0.05729855]
[1767101725995,5.4528771,124.07,124.0,17.33162713]
[1767101726291,3.37,124.06,124.0,102.5867]
[1767101726594,3.37,124.08,124.0,107.41014336]
[1767101727084,0.004262,124.05,124.03,0.05350804]
[1767101744005,3.374262,124.05,123.98,95.32]
[1767101745003,3.374262,124.05,124.0,0.05095636]
[1767101749611,10.638662,124.05,124.0,0.05095636]
[1767101750015,0.004262,124.05,124.0,7.31825636]
[1767101757522,0.004262,124.05,124.0,10.48196422]
[1767101760621,0.004262,124.05,124.0,0.05095636]
[1767101765325,0.004262,124.05,124.0,7.31805636]
[1767101768527,0.004262,124.05,124.0,0.05095636]
[1767101768725,0.004262,124.05,124.0,113.09245636]
[1767101769131,0.004262,124.05,124.01,113.0384]
[1767101769930,0.004262,124.05,124.03,7.265]
[1767101770230,0.004262,124.05,124.03,7.31878793]
[1767101771432,0.004262,124.05,124.03,0.05378793]
[1767101774029,3.37,124.11,124.03,0.05378793]
[1767101774238,3.37,124.13,124.05,3.16370786]
[1767101774424,3.37,124.13,124.06,95.32]
[1767101775030,0.05097213,124.11,124.08,0.06100422]
[1767101775931,3.42097213,124.11,124.08,0.06100422]
[1767101779240,3.42097213,124.11,124.08,0.00100422]
[1767101781033,3.42097213,124.11,124.04,95.32]
[1767101781234,6.58467999,124.11,124.04,95.32]
[1767101781437,3.33,124.1,124.04,95.32]
[1767101781740,3.33,124.1,124.05,7.2642]
[1767101782141,0.05910458,124.09,124.06,0.05086862]
[1767101787647,3.38910458,124.09,124.06,0.00086862]
[1767101789050,10.65110458,124.09,124.06,0.00086862]
[1767101790153,3.33,124.08,124.06,0.00086862]
[1767101791150,10.5926,124.08,124.06,0.00086862]
[1767101792946,7.2626,124.08,124.06,0.00086862]
[1767101793252,0.05910458,124.09,124.06,0.00086862]
[1767101794954,3.33,124.13,124.06,3.16457648]
[1767101796061,0.05844396,124.11,124.06,3.16457648]
[1767101796461,0.05844396,124.11,124.07,7.263]
[1767101796656,3.33,124.15,124.08,3.16370786]
[1767101797563,0.05325218,124.13,124.1,7.31472327]
[1767101800461,0.05325218,124.13,124.1,9.33648202]
[1767101803067,0.05325218,124.13,124.1,7.31472327]
[1767101803268,0.05325218,124.13,124.1,0.05362327]
[1767101807470,3.59325218,124.13,124.1,0.00362327]
[1767101811368,10.85295218,124.13,124.1,0.00362327]
[1767101812264,7.2603,124.12,124.1,0.00362327]
[1767101818068,10.8003,124.12,124.1,0.00362327]
[1767101820868,3.54,124.12,124.1,0.00362327]
[1767101821578,0.05325218,124.13,124.1,0.00362327]
[1767101822579,7.31295218,124.13,124.1,0.00362327]
[1767101822773,0.05325218,124.13,124.1,0.00362327]
[1767101841794,0.05325218,124.13,124.1,7.26492327]
[1767101842889,3.39,124.14,124.1,7.26492327]
[1767101843398,3.39,124.14,124.1,9.28668202]
[1767101843995,0.06120341,124.13,124.1,9.28668202]
[1767101844188,3.39,124.14,124.1,9.28668202]
[1767101845096,0.0546092,124.13,124.1,9.28668202]
[1767101845798,0.0546092,124.13,124.11,7.2606]
[1767101846297,2.02175875,124.17,124.12,7.2603]
[1767101847097,0.05757897,124.16,124.13,0.00079325]
[1767101848100,3.47,124.15,124.13,0.00079325]
[1767101854294,0.05757897,124.16,124.13,0.00079325]
[1767101854491,3.52757897,124.16,124.13,3.00079325]
[1767101864708,3.52757897,124.16,124.11,0.33]
[1767101864709,3.47,124.15,124.1,10.06492713]
[1767101864907,3.47,124.15,124.09,108.53492713]
[1767101865410,10.7286,124.15,124.09,115.79692713]
[1767101865709,0.05782202,124.13,124.11,0.05549804]
[1767101873626,3.47,124.15,124.11,0.05549804]
[1767101874121,3.47,124.15,124.11,3.38549804]
[1767101874328,3.42,124.17,124.11,3.38549804]
[1767101874628,0.05575886,124.15,124.11,3.38549804]
[1767101878730,0.05575886,124.15,124.11,10.64629804]
[1767101880932,3.2,124.18,124.12,7.2597]
[1767101881328,3.2,124.18,124.1,98.51]
[1767101882034,0.05358119,124.15,124.1,98.51]
[1767101882234,3.25358119,124.15,124.1,98.51]
[1767101882937,3.25358119,124.15,124.11,0.05186735]
[1767101889346,0.05358119,124.15,124.11,3.38186735]
[1767101892245,0.05358119,124.15,124.11,13.44679448]
[1767101895754,0.05358119,124.15,124.12,3.33]
[1767101910772,0.00358119,124.15,124.12,10.5902]
[1767101910970,0.00358119,124.15,124.12,3.33]
[1767101913674,0.00358119,124.15,124.12,13.39492713]
[1767101915581,0.00358119,124.15,124.12,3.33]
[1767101920685,0.00358119,124.15,124.12,13.74849252]
[1767101920986,193.62071516,124.21,124.15,3.28]
[1767101921286,193.62071516,124.21,124.16,3.28]
[1767101921780,0.06192418,124.2,124.17,0.060523]
[1767101926891,0.06192418,124.2,124.17,3.340523]
[1767101930991,0.06192418,124.2,124.17,10.597723]
[1767101932497,3.49,124.22,124.17,10.597723]
[1767101933494,0.06166091,124.21,124.17,10.597723]
[1767101934598,3.49,124.24,124.18,10.5367]
[1767101935492,0.0532572,124.22,124.2,0.0605494]
[1767101939798,0.0532572,124.22,124.17,10.5368]
[1767101940394,3.5032572,124.22,124.17,10.5368]
[1767101940798,3.5032572,124.22,124.18,0.06089669]
[1767101942198,5.52319917,124.22,124.18,0.06089669]
[1767101942698,3.5032572,124.22,124.18,0.06089669]
[1767101943296,0.0532572,124.22,124.18,3.34089669]
[1767101943696,0.0532572,124.22,124.18,10.59759669]
[1767101944500,0.0532572,124.22,124.19,3.28]
[1767101944699,0.0532572,124.22,124.19,10.536]
[1767101946294,3.45,124.24,124.2,3.28]
[1767101947405,0.05960937,124.23,124.21,0.05853188]
[1767101950200,3.45,124.26,124.21,3.28853188]
[1767101951304,0.05872775,124.25,124.21,3.28853188]
[1767101953905,3.50872775,124.25,124.21,0.05853188]
[1767101966523,0.05872775,124.25,124.22,3.23]
[1767101969527,10.4607,124.29,124.24,3.23]
[1767101969727,3.21,124.29,124.24,3.23]
[1767101970422,0.05544297,124.28,124.25,0.05772484]
[1767101972031,3.21,124.27,124.21,10.5345]
[1767101972925,0.05306948,124.25,124.23,0.06021976]
[1767101978229,3.26306948,124.25,124.2,7.2556]
[1767101978436,3.26306948,124.25,124.17,3.34]
[1767101978437,2.01994197,124.22,124.17,3.34]
[1767101979535,2.01994197,124.24,124.18,3.39281522]
[1767101979730,5.22994197,124.25,124.18,3.34]
[1767101980127,3.21,124.25,124.18,3.34]
[1767101980329,5.22994197,124.25,124.19,10.5461]
[1767101980527,0.05125376,124.23,124.21,0.05713008]
[1767101989132,0.05125376,124.23,124.19,3.29]
[1767101990043,0.05125376,124.23,124.2,0.05228304]
[1767101992443,0.05125376,124.23,124.2,3.34228304]
[1767101992741,0.05125376,124.23,124.2,0.05228304]
[1767101998946,3.37125376,124.23,124.2,0.05228304]
[1767102004651,0.05125376,124.23,124.2,0.05228304]
[1767102009948,0.05125376,124.23,124.2,3.34228304]
[1767102011657,3.47,124.26,124.21,3.29]
[1767102012651,0.05248151,124.25,124.21,10.5449]
[1767102013653,0.05248151,124.25,124.21,3.29]
[1767102016157,3.59248151,124.25,124.21,3.29]
[1767102033069,3.59248151,124.25,124.21,3.29]
[1767102033671,0.05248151,124.25,124.21,3.29]
[1767102040075,10.7915,124.27,124.21,3.29]
[1767102040276,10.7915,124.27,124.22,3.29]
[1767102041066,0.05590097,124.26,124.23,0.051656]
[1767102045178,0.05590097,124.26,124.23,10.595256]
[1767102045381,3.54,124.31,124.25,3.23]
[1767102046374,0.05242756,124.29,124.27,0.06022601]
[1767102046980,3.53242756,124.29,124.27,0.00022601]
[1767102059994,0.05242756,124.29,124.27,0.00022601]
[1767102066601,3.24242756,124.29,124.27,0.00022601]
[1767102075809,3.19,124.31,124.27,0.00022601]
[1767102076716,10.4394,124.31,124.27,0.00022601]
[1767102076912,3.43557198,124.3,124.27,0.00022601]
[1767102094032,0.05557198,124.3,124.27,0.00022601]
[1767102098540,3.43557198,124.3,124.27,0.00022601]
[1767102107947,0.82,124.29,124.24,95.14]
[1767102108547,0.82,124.28,124.24,95.14]
[1767102108748,0.83163994,124.27,124.25,0.00155902]
[1767102120065,0.77,124.32,124.26,3.35]
[1767102120966,0.77,124.32,124.26,10.6018]
[1767102121168,0.77,124.32,124.28,0.06067766]
[1767102121580,0.77,124.32,124.28,0.00067766]
[1767102122478,0.05111663,124.31,124.28,0.00067766]
[1767102122683,0.77,124.3,124.28,0.00067766]
[1767102129082,0.77,124.3,124.23,7.2537]
[1767102129283,0.77,124.3,124.23,10.6037]
[1767102129489,0.77,124.3,124.21,25.65536642]
[1767102129776,0.77,124.3,124.21,105.7446]
[1767102129985,0.77,124.3,124.22,3.35]
[1767102130183,0.05244461,124.27,124.25,0.05171624]
[1767102130382,0.82316636,124.27,124.2,6.50132748]
[1767102131484,0.82316636,124.27,124.22,0.0554903]
[1767102133282,0.05316636,124.27,124.22,6.55681778]
[1767102133589,0.05316636,124.27,124.23,3.35]
[1767102134688,0.05316636,124.27,124.24,7.2532]
[1767102134887,0.05316636,124.27,124.24,10.6032]
[1767102135082,0.72,124.29,124.24,10.6032]
[1767102136088,0.0529515,124.28,124.25,0.05365632]
[1767102137589,0.72,124.29,124.25,0.05365632]
[1767102137989,0.72,124.29,124.25,7.30635632]
[1767102138289,0.72,124.31,124.25,10.78635632]
[1767102138589,0.72,124.31,124.25,3.53365632]
[1767102139693,0.72,124.31,124.26,7.2521]
[1767102147698,0.72,124.31,124.25,10.78625632]
[1767102148097,0.72,124.31,124.26,3.48]
[1767102150201,0.72,124.31,124.26,10.732]
[1767102150900,0.72,124.31,124.27,3.48]
[1767102151102,0.72,124.31,124.28,0.05321534]
[1767102154096,0.72,124.35,124.28,3.53321534]
[1767102154300,0.72,124.35,124.29,3.48]
[1767102154502,0.72,124.35,124.31,0.05660953]
[1767102155300,0.66,124.33,124.29,3.48]
[1767102156396,0.05660953,124.32,124.3,0.05904629]
[1767102158801,7.9069,124.35,124.3,3.53904629]
[1767102162805,0.66,124.35,124.3,3.53904629]
[1767102164203,0.66,124.35,124.3,0.05904629]
[1767102169611,2.73557115,124.36,124.3,3.59904629]
[1767102171016,9.98187115,124.36,124.3,3.59904629]
[1767102172216,7.9663,124.36,124.3,3.59904629]
[1767102173813,0.72,124.36,124.3,3.59904629]
[1767102174719,0.72,124.36,124.31,3.54]
[1767102177621,179.99772404,124.37,124.31,3.54]
[1767102177807,179.99772404,124.37,124.33,0.05262054]
[1767102178211,7.9655,124.38,124.33,0.05262054]
[1767102178412,104.36007115,124.39,124.33,3.37262054]
[1767102179012,105.08007115,124.39,124.33,3.37262054]
[1767102180522,97.83557115,124.39,124.33,3.37262054]
[1767102180718,12.05819332,124.41,124.34,3.32]
[1767102180719,12.77819332,124.41,124.34,3.32]
[1767102180918,12.77819332,124.41,124.36,3.38028067]
[1767102181809,0.72,124.4,124.36,0.06028067]
[1767102182319,0.72,124.38,124.36,0.00028067]
[1767102183418,0.77911012,124.38,124.36,0.00028067]
[1767102187922,2.79468127,124.38,124.33,7.248]
[1767102188124,0.66,124.35,124.29,3.32]
[1767102188325,2.01557115,124.34,124.29,3.32]
[1767102188524,2.01557115,124.34,124.29,10.57]
[1767102188832,2.67557115,124.34,124.29,10.57]
[1767102189028,0.05703011,124.33,124.3,0.06113562]
[1767102190336,2.61557115,124.32,124.27,7.251]
[1767102191133,0.6,124.31,124.26,10.572]
[1767102191438,0.06065866,124.3,124.27,0.0614252]
[1767102202353,0.06065866,124.3,124.27,3.3414252]
[1767102202550,2.01557115,124.32,124.27,3.3414252]
[1767102203251,2.61557115,124.33,124.27,3.3414252]
[1767102203648,0.05801336,124.31,124.27,3.3414252]
[1767102206651,0.05801336,124.31,124.27,10.5929252]
[1767102208354,0.05801336,124.31,124.27,3.3414252]
[1767102208945,0.65801336,124.31,124.27,3.3414252]
[1767102209144,0.65801336,124.31,124.27,0.0614252]
[1767102219363,0.65801336,124.31,124.27,7.3128252]
[1767102225474,0.05801336,124.31,124.27,10.5928252]
[1767102233081,0.05801336,124.31,124.27,3.3414252]
[1767102234381,0.65801336,124.31,124.27,3.3414252]
[1767102236685,0.05801336,124.31,124.27,3.3414252]
[1767102240284,0.05801336,124.31,124.27,10.5928252]
[1767102240586,0.05801336,124.31,124.28,3.4]
[1767102248993,7.2479,124.34,124.29,3.4]
[1767102249889,7.2479,124.34,124.3,0.06118134]
[1767102253092,7.2479,124.34,124.3,3.46118134]
[1767102259893,7.2481,124.33,124.3,3.46118134]
[1767102260598,7.2474,124.34,124.3,3.46118134]
[1767102261315,7.9069,124.35,124.3,3.46118134]
[1767102262810,0.65,124.34,124.3,3.46118134]
[1767102266012,0.65,124.34,124.3,0.06118134]
[1767102289737,0.65,124.38,124.33,3.3]
[1767102289932,0.65,124.39,124.34,3.35728931]
[1767102292430,0.65,124.39,124.34,10.60448931]
[1767102295041,0.65,124.39,124.35,7.2468]
[1767102298051,0.65,124.39,124.34,3.35728931]
[1767102298352,0.65,124.38,124.34,3.35728931]
[1767102308648,9.91971505,124.4,124.34,3.35728931]
[1767102310647,7.9045,124.39,124.34,3.35728931]
[1767102313368,7.2445,124.39,124.34,3.35728931]
[1767102314864,12.05819332,124.41,124.36,3.27]
[1767102315170,12.05819332,124.41,124.37,3.32621198]
[1767102318958,121.01993991,124.44,124.38,3.42]
[1767102319163,121.01993991,124.44,124.4,0.06029055]
[1767102319359,124.21993991,124.44,124.4,0.06029055]
[1767102323871,3.2,124.43,124.4,0.06029055]
[1767102336279,3.2613064,124.43,124.4,0.00029055]
[1767102336779,3.2,124.41,124.36,2.64]
[1767102337581,3.2,124.41,124.36,9.8862]
[1767102337783,0.05485108,124.4,124.37,0.05416564]
[1767102338583,0.05485108,124.4,124.37,2.69416564]
[1767102340283,3.2,124.42,124.38,2.59]
[1767102342188,3.2,124.42,124.37,7.29986564]
[1767102343187,3.2,124.42,124.37,9.88986564]
[1767102345290,3.2,124.42,124.37,2.64416564]
[1767102349395,3.2,124.42,124.37,10.18079371]
[1767102349598,3.27,124.41,124.37,0.05416564]
[1767102353194,3.27,124.41,124.37,2.64416564]
[1767102353393,3.27,124.41,124.37,10.18079371]
[1767102353995,3.27,124.43,124.38,2.59]
[1767102354192,3.27,124.43,124.38,10.12662807]
[1767102360206,3.27,124.43,124.39,7.53662807]
[1767102360403,3.27,124.43,124.4,0.05218224]
[1767102361211,10.5122,124.43,124.4,0.05218224]
[1767102361409,3.23,124.42,124.38,2.807e-05]
[1767102362013,3.23,124.42,124.36,2.64]
[1767102362207,10.4729,124.42,124.36,2.64]
[1767102362509,0.06036598,124.4,124.38,0.05700329]
[1767102371018,3.29036598,124.4,124.38,0.05700329]
[1767102374919,0.06036598,124.4,124.38,0.05700329]
[1767102378222,0.00036598,124.4,124.38,2.69700329]
[1767102380722,0.00036598,124.4,124.38,0.05700329]
[1767102389328,3.26036598,124.4,124.35,12.62375431]
[1767102389629,3.26036598,124.4,124.33,12.68375431]
[1767102389927,10.5051,124.38,124.33,2.64]
[1767102390132,3.26,124.37,124.31,279.90155328]
[1767102390332,0.05736927,124.35,124.33,0.05349314]
[1767102392035,3.31736927,124.35,124.33,0.00349314]
[1767102394334,0.05736927,124.35,124.33,0.00349314]
[1767102394537,10.5056,124.38,124.33,0.00349314]
[1767102395226,3.26,124.37,124.33,0.00349314]
[1767102395539,0.05,124.36,124.33,0.00349314]
[1767102396739,3.31,124.36,124.33,0.00349314]
[1767102411459,10.5564,124.36,124.33,0.00349314]
[1767102413566,3.42,124.35,124.33,0.00349314]
[1767102417367,7.2964,124.36,124.33,0.00349314]
[1767102417368,0.05,124.36,124.33,0.00349314]
[1767102421366,3.44,124.36,124.33,0.00349314]
[1767102423372,10.6863,124.36,124.33,0.00349314]
[1767102423571,3.39,124.35,124.33,0.00349314]
[1767102424775,10.6374,124.35,124.33,0.00349314]
[1767102424980,3.39,124.34,124.26,10.13495483]
[1767102425171,3.39,124.32,124.26,10.13495483]
[1767102425369,3.39,124.32,124.26,2.63]
[1767102425872,0.05349314,124.3,124.28,0.06002323]
[1767102428474,3.44349314,124.3,124.28,2.323e-05]
[1767102431893,3.44349314,124.3,124.25,7.50495483]
[1767102432188,3.44349314,124.3,124.23,10.19495483]
[1767102433178,3.44349314,124.3,124.25,0.05339922]
[1767102436684,0.05349314,124.3,124.25,2.75339922]
[1767102437984,0.05349314,124.3,124.25,10.00589922]
[1767102438190,0.05349314,124.3,124.25,10.25835405]
[1767102438683,0.05349314,124.3,124.25,12.27349198]
[1767102439085,3.41349314,124.3,124.25,12.27349198]
[1767102439586,3.41349314,124.3,124.25,19.52609198]
[1767102440791,3.41349314,124.3,124.25,17.51095405]
[1767102444193,0.05349314,124.3,124.26,2.7]
[1767102444383,0.05349314,124.3,124.26,9.952]
[1767102444695,0.05349314,124.3,124.27,2.7]
[1767102461505,0.05349314,124.3,124.27,2.7]
[1767102473611,3.38,124.34,124.29,2.69]
[1767102474617,0.05608845,124.33,124.3,0.05494144]
[1767102483213,3.53608845,124.33,124.3,0.05494144]
[1767102483409,3.53608845,124.33,124.27,2.69]
[1767102484415,3.53608845,124.33,124.27,12.73375431]
[1767102484616,10.78418845,124.33,124.29,0.05644282]
[1767102486722,3.48,124.32,124.29,0.05644282]
[1767102492831,7.30418845,124.33,124.29,0.05644282]
[1767102493131,10.78418845,124.33,124.29,0.05644282]
[1767102493329,3.53608845,124.33,124.29,0.05644282]
[1767102496533,3.53608845,124.33,124.28,2.74]
[1767102496534,3.53608845,124.33,124.27,10.04375431]
[1767102496738,3.53608845,124.33,124.26,2.74]
[1767102496739,3.53608845,124.33,124.26,12.78375431]
[1767102497331,3.53608845,124.33,124.26,20.03585431]
[1767102497727,3.53608845,124.33,124.28,0.06174217]
[1767102502648,3.53608845,124.33,124.28,2.86174217]
[1767102502849,3.53608845,124.33,124.28,12.90549648]
[1767102503349,3.53608845,124.33,124.28,0.06174217]
[1767102506647,3.53608845,124.33,124.28,10.11264217]
[1767102508245,0.05608845,124.33,124.29,2.8]
[1767102508451,3.37,124.39,124.32,2.74]
[1767102508648,137.78230393,124.41,124.33,2.74]
[1767102508850,3.37,124.4,124.34,2.74]
[1767102509148,3.37,124.4,124.35,7.52848408]
[1767102509349,3.37,124.4,124.34,17.51588408]
[1767102509550,0.05764518,124.39,124.36,0.05743564]
[1767102520266,0.05764518,124.39,124.36,7.30363564]
[1767102524568,3.42764518,124.39,124.36,3.76363564]
[1767102525568,3.42764518,124.39,124.36,3.82468628]
[1767102527267,3.42764518,124.39,124.36,0.06105064]
[1767102529264,3.42764518,124.39,124.36,0.00105064]
[1767102532873,3.25,124.37,124.31,3.35]
[1767102533967,0.05989913,124.35,124.33,0.0555605]
[1767102535267,95.06,124.4,124.33,3.4055605]
[1767102535268,3.25,124.39,124.33,3.4055605]
[1767102536174,0.05794117,124.37,124.33,3.4055605]
[1767102539571,0.05794117,124.37,124.33,10.6535605]
[1767102540283,0.05794117,124.37,124.34,3.45]
[1767102540469,0.05794117,124.37,124.34,10.6974]
[1767102540974,3.5,124.41,124.36,3.45]
[1767102541876,0.05542033,124.4,124.37,0.05896182]
[1767102543875,3.5,124.39,124.35,7.2466]
[1767102544778,0.05542033,124.4,124.34,3.45]
[1767102544974,0.05348537,124.38,124.36,0.05998388]
[1767102545571,0.05348537,124.38,124.36,7.30618388]
[1767102548070,3.5,124.41,124.36,10.75618388]
[1767102548873,0.05547099,124.4,124.36,10.75618388]
[1767102551381,0.05547099,124.4,124.36,18.28466796]
[1767102560283,0.05547099,124.4,124.37,3.36]
[1767102560492,0.05547099,124.4,124.37,10.88848408]
[1767102562685,0.05547099,124.4,124.37,12.90271174]
[1767102562893,3.19,124.45,124.4,3.36]
[1767102563792,0.0602327,124.44,124.41,0.06112209]
[1767102568183,3.2502327,124.44,124.38,3.36]
[1767102568390,5.20422766,124.43,124.38,3.36]